bitfinex-derivatives/quotes_ETHF0:USTF0_20250824
["timestamp","ask_amount","ask_price","bid_price","bid_amount"]
[1756010443734,0.1594,4789.0,4788.9,1.3154]
[1756010447133,0.2244,4789.3,4788.9,0.7912]
[1756010447331,0.3838,4789.5,4789.4,0.94192]
[1756010447537,0.3838,4789.5,4789.4,1.73312]
[1756010448037,19.101,4789.6,4789.5,1.3154]
[1756010448236,0.1594,4789.7,4789.6,0.3684]
[1756010448436,0.3846,4789.7,4789.6,1.7331]
[1756010449227,0.3859,4789.7,4789.6,1.5846]
[1756010449833,0.3859,4789.7,4789.6,1.7331]
[1756010450829,0.3859,4789.7,4789.6,0.6001]
[1756010451037,0.1615,4789.4,4789.3,0.64212]
[1756010451237,19.4829,4789.4,4789.3,1.34552]
[1756010451438,19.4829,4789.4,4789.3,1.49402]
[1756010451734,19.4829,4789.4,4789.3,1.73312]
[1756010452040,0.3859,4789.7,4789.6,1.7331]
[1756010452236,0.41764,4790.3,4790.1,0.41766]
[1756010452442,19.4829,4790.2,4790.1,1.73306]
[1756010453634,19.2572,4790.2,4790.1,1.73306]
[1756010454437,19.4829,4790.2,4790.1,1.40536]
[1756010454736,19.4829,4790.2,4790.1,1.01776]
[1756010455436,19.4829,4790.2,4790.1,0.79786]
[1756010455641,19.4829,4790.2,4790.1,0.64206]
[1756010455845,19.4829,4790.2,4789.9,0.41767]
[1756010456033,0.1615,4789.2,4789.1,0.64214]
[1756010456234,0.3859,4789.2,4789.1,0.64214]
[1756010456840,0.3859,4789.2,4789.1,0.79794]
[1756010457035,0.3859,4789.2,4789.1,1.73314]
[1756010458841,0.3859,4789.2,4788.7,1.01788]
[1756010458842,0.1615,4788.8,4788.7,1.01788]
[1756010459036,0.3859,4788.8,4788.7,1.34558]
[1756010459235,0.3859,4788.8,4788.7,1.01788]
[1756010459440,0.3859,4788.8,4788.7,0.64218]
[1756010459838,0.3859,4788.8,4788.7,1.01788]
[1756010460046,0.3859,4788.8,4788.7,1.73318]
[1756010462544,19.095,4789.3,4789.1,0.41774]
[1756010462848,0.3846,4789.2,4789.1,1.26964]
[1756010463254,0.3846,4789.2,4789.1,1.73314]
[1756010463443,0.3859,4789.2,4789.1,1.73314]
[1756010463644,0.3859,4789.2,4789.1,1.40544]
[1756010464555,0.41776,4789.0,4788.9,0.2188]
[1756010464858,0.81396,4789.0,4788.9,0.2188]
[1756010465258,0.3962,4789.0,4788.9,0.2188]
[1756010467159,0.89010308,4789.0,4788.9,0.3786]
[1756010468655,0.89010308,4789.0,4788.9,0.6165]
[1756010468962,0.89010308,4789.0,4788.9,1.3441]
[1756010470957,0.89010308,4789.0,4787.1,1.866837]
[1756010470958,0.239,4788.9,4787.1,1.866837]
[1756010471160,0.41785,4787.9,4787.5,0.41788]
[1756010471466,1.04446,4788.7,4787.4,0.63669]
[1756010471467,0.1572,4787.5,4787.4,0.63669]
[1756010471667,0.3962,4787.5,4787.4,0.63669]
[1756010471855,0.3962,4787.5,4787.4,0.2188]
[1756010472061,0.1572,4786.4,4786.3,0.3977]
[1756010472362,0.3962,4786.4,4786.3,1.3441]
[1756010472867,0.3962,4786.4,4786.3,0.2188]
[1756010473362,0.1572,4786.0,4785.9,0.2188]
[1756010473567,0.3962,4786.0,4785.9,0.2188]
[1756010473864,0.3962,4786.0,4785.9,0.6165]
[1756010474060,0.3962,4786.0,4785.9,0.7767]
[1756010475168,0.3962,4786.0,4785.9,0.6165]
[1756010475367,0.3962,4786.0,4785.9,0.2188]
[1756010475759,0.3962,4786.0,4785.9,0.3786]
[1756010476068,0.3962,4786.0,4785.9,0.6165]
[1756010476259,0.65697,4786.6,4786.3,0.5684]
[1756010476459,0.81416,4786.6,4786.5,1.3441]
[1756010476961,19.095,4786.6,4786.5,0.5579]
[1756010477163,19.4912,4786.6,4786.5,0.5579]
[1756010477363,19.4912,4786.6,4786.5,0.3977]
[1756010477554,19.4912,4786.6,4786.5,0.6165]
[1756010478362,19.4912,4786.6,4786.5,0.9945]
[1756010478558,19.4912,4786.6,4786.5,1.3441]
[1756010478765,19.4912,4786.6,4786.5,1.76207]
[1756010478766,19.095,4786.6,4786.5,1.76207]
[1756010478961,19.2522,4786.6,4786.5,1.76207]
[1756010479165,19.4912,4786.6,4786.5,1.3441]
[1756010479664,0.1572,4786.3,4786.2,0.2188]
[1756010479869,0.3962,4786.3,4786.2,0.2188]
[1756010480565,0.3962,4786.3,4786.2,0.6165]
[1756010480768,0.3962,4786.3,4786.2,1.3441]
[1756010484573,0.1572,4786.3,4786.2,1.3441]
[1756010484776,0.3962,4786.3,4786.2,1.3441]
[1756010488276,19.2522,4786.6,4786.5,0.5579]
[1756010488477,19.4912,4786.6,4786.5,1.3441]
[1756010488679,0.1572,4786.9,4786.8,0.81604]
[1756010488879,19.2602,4786.9,4786.8,1.3441]
[1756010489277,19.4992,4786.9,4786.8,1.3441]
[1756010489769,19.2602,4786.9,4786.8,1.3441]
[1756010490379,19.4992,4786.9,4786.8,1.3441]
[1756010490575,19.103,4786.9,4786.8,1.3441]
[1756010491078,30.088,4787.4,4787.3,0.9758]
[1756010491278,49.192,4787.4,4787.3,1.762]
[1756010491871,19.104,4787.4,4787.3,1.762]
[1756010492670,0.239,4788.3,4788.0,0.41783]
[1756010492982,30.103,4788.8,4788.1,0.5579]
[1756010492983,19.107,4788.2,4788.1,0.5579]
[1756010493185,19.107,4788.2,4788.1,0.97573]
[1756010493377,19.107,4788.2,4788.1,1.76193]
[1756010495579,19.2652,4788.6,4788.5,0.41779]
[1756010495780,19.2652,4788.6,4788.5,0.94639]
[1756010496085,19.108,4788.6,4788.5,1.73929]
[1756010496579,0.3822,4789.1,4789.0,0.94635]
[1756010496782,19.4872,4789.1,4789.0,1.73925]
[1756010497278,19.2494,4789.1,4789.0,1.73925]
[1756010497478,19.105,4789.1,4789.0,1.73925]
[1756010497686,19.2494,4789.1,4789.0,1.73925]
[1756010497884,19.4872,4789.1,4789.0,1.73925]
[1756010499279,19.4872,4789.1,4789.0,1.3215]
[1756010500086,19.2494,4789.1,4789.0,1.3215]
[1756010500780,19.105,4789.1,4789.0,1.3215]
[1756010501188,19.2494,4789.1,4789.0,1.3215]
[1756010501378,19.4872,4789.1,4789.0,1.3215]
[1756010501581,0.3822,4789.1,4789.0,1.3215]
[1756010501987,0.3822,4789.1,4789.0,0.221]
[1756010505091,0.3822,4789.1,4789.0,1.3215]
[1756010505991,0.3822,4789.1,4789.0,0.4492]
[1756010506780,0.3822,4789.1,4789.0,0.3765]
[1756010506986,0.3822,4789.1,4789.0,1.3215]
[1756010508589,19.9019,4789.6,4789.5,0.5286]
[1756010508781,19.9019,4789.6,4789.5,0.7496]
[1756010509191,19.9019,4789.6,4789.5,0.6047]
[1756010509389,19.9019,4789.6,4789.5,0.2282]
[1756010509588,19.4842,4789.6,4789.5,1.3215]
[1756010511991,19.102,4789.6,4789.5,1.3215]
[1756010512393,19.2464,4789.6,4789.5,1.3215]
[1756010512694,19.4842,4789.6,4789.5,1.3215]
[1756010520302,19.97754425,4789.6,4789.5,1.3215]
[1756010520506,0.1444,4789.2,4789.1,0.63874]
[1756010520802,0.3822,4789.2,4789.1,0.63874]
[1756010521997,0.3822,4789.2,4789.1,0.79424]
[1756010522603,0.3822,4789.2,4789.1,1.01654]
[1756010522797,0.3822,4789.2,4789.1,1.59434]
[1756010523503,0.3822,4789.2,4789.1,1.73924]
[1756010528703,0.383,4789.2,4789.1,1.73924]
[1756010531407,0.87726998,4789.2,4789.1,1.73924]
[1756010531604,0.87726998,4789.2,4789.1,0.221]
[1756010534006,0.1508,4788.8,4788.7,0.5621]
[1756010534213,20.38293998,4788.8,4788.7,0.7195]
[1756010534399,19.96516998,4788.8,4788.7,1.1038]
[1756010534605,19.96516998,4788.8,4788.7,1.3232]
[1756010535213,19.4709,4788.8,4788.7,1.3232]
[1756010535803,0.3791,4789.2,4789.1,0.5417]
[1756010536006,0.64410665,4789.2,4789.1,1.74094]
[1756010536203,19.58510665,4789.2,4789.1,1.3232]
[1756010536609,19.96420665,4789.2,4789.1,1.3232]
[1756010536810,19.96500665,4789.2,4789.1,1.3232]
[1756010538809,0.49410665,4789.2,4789.1,1.3232]
[1756010539009,19.58510665,4789.2,4789.1,1.3232]
[1756010539209,19.73510665,4789.2,4789.1,1.3232]
[1756010539508,19.96420665,4789.2,4789.1,1.3232]
[1756010539711,19.58510665,4789.2,4789.1,1.3232]
[1756010540013,19.091,4789.2,4789.1,1.3232]
[1756010540813,19.4701,4789.2,4789.1,1.3232]
[1756010541215,19.4709,4789.2,4789.1,1.3232]
[1756010542815,19.4709,4789.2,4789.1,0.9776]
[1756010543016,19.4709,4789.2,4789.1,0.6126]
[1756010544010,19.96511006,4789.2,4789.1,0.6126]
[1756010544218,19.96511006,4789.2,4789.1,0.3768]
[1756010544511,19.96511006,4789.2,4789.1,0.2194]
[1756010544718,19.96511006,4789.2,4787.8,1.04463]
[1756010544719,0.3799,4788.5,4788.4,1.52161]
[1756010545017,19.4699,4788.5,4788.4,1.70207591]
[1756010545214,19.4699,4788.5,4788.4,1.92147591]
[1756010547018,19.4699,4788.5,4788.4,1.74101]
[1756010551424,19.24,4788.5,4788.4,1.74101]
[1756010551724,0.2291,4788.9,4788.8,0.41777]
[1756010552018,0.87410326,4788.9,4788.8,1.74097]
[1756010553618,0.87410326,4788.9,4788.8,1.59257]
[1756010554218,0.87410326,4788.9,4788.8,0.9776]
[1756010554417,0.87410326,4788.9,4788.8,0.2194]
[1756010555419,0.87410326,4788.9,4788.8,1.0991]
[1756010555624,0.87410326,4788.9,4788.8,1.3188]
[1756010556218,0.64410326,4788.9,4788.8,1.3188]
[1756010556417,0.49410326,4788.9,4788.8,1.3188]
[1756010556625,3.2078,4789.1,4788.9,0.95037]
[1756010556827,0.49416176,4789.0,4788.9,0.95037]
[1756010557324,19.09,4789.3,4789.2,0.95034]
[1756010557522,19.58418939,4789.3,4789.2,1.74124]
[1756010558823,19.95158939,4789.3,4789.2,1.74124]
[1756010559220,19.95158939,4789.3,4789.2,2.00435306]
[1756010559527,19.95248939,4789.3,4789.2,2.00435799]
[1756010559728,19.95248939,4789.3,4789.2,1.01981799]
[1756010560027,19.95248939,4789.3,4789.2,0.48721799]
[1756010560828,19.95248939,4789.3,4789.2,0.26311799]
[1756010562727,23.95248939,4789.3,4789.2,0.26311799]
[1756010562921,0.1463,4788.8,4788.7,0.64188]
[1756010563126,19.4563,4788.8,4788.7,0.90502455]
[1756010563521,19.4563,4788.8,4788.7,1.84752455]
[1756010563722,19.4563,4788.8,4788.7,2.00442455]
[1756010565228,19.088,4788.8,4788.7,2.00442455]
[1756010565622,19.4554,4788.8,4788.7,2.00442455]
[1756010566428,19.4563,4788.8,4788.7,2.00442455]
[1756010566620,19.4554,4788.8,4788.7,2.00442455]
[1756010566825,19.4563,4788.8,4788.7,2.00442455]
[1756010567225,19.4563,4788.8,4788.7,1.43762455]
[1756010567624,19.4563,4788.8,4788.7,2.00442455]
[1756010572630,19.4554,4788.8,4788.7,2.00442455]
[1756010572936,19.2334,4788.8,4788.7,2.00446151]
[1756010573428,19.2314,4789.0,4788.9,1.74127]
[1756010573627,19.4543,4789.0,4788.9,2.00445151]
[1756010573832,19.94868586,4789.0,4788.9,2.00445151]
[1756010574535,0.1454,4789.0,4788.9,2.00445151]
[1756010574738,19.2314,4789.2,4789.1,1.74125]
[1756010574936,19.2314,4789.2,4789.1,2.00443151]
[1756010575735,19.4534,4789.2,4789.1,2.00443151]
[1756010576138,19.4543,4789.2,4789.1,2.00443151]
[1756010577131,19.94863627,4789.2,4789.1,0.90503151]
[1756010577332,19.94863627,4789.2,4789.1,0.26318151]
[1756010577642,0.0296,4788.7,4788.6,3.2078]
[1756010577834,19.1325,4788.7,4788.6,3.2078]
[1756010578241,0.44739,4788.6,4788.4,0.2241]
[1756010578434,0.0475,4788.4,4788.3,0.41781]
[1756010579138,0.0287,4788.1,4788.0,3.2078]
[1756010579342,0.0287,4788.1,4788.0,0.1807252]
[1756010579343,19.55034,4788.1,4788.0,0.1807252]
[1756010579543,0.0475,4787.8,4787.7,0.41786]
[1756010579944,0.0475,4787.7,4787.6,0.2241]
[1756010580348,0.54162402,4787.7,4787.6,0.2241]
[1756010581038,0.0296,4787.0,4786.9,0.79404]
[1756010581244,0.0475,4787.0,4786.9,1.69810027]
[1756010581550,0.0475,4787.0,4786.9,1.92220027]
[1756010581844,0.0475,4787.0,4786.9,1.92220253]
[1756010582040,0.0475,4787.0,4786.9,1.74144]
[1756010582237,0.0475,4787.0,4786.9,1.39434]
[1756010582438,0.0475,4787.0,4786.9,0.2241]
[1756010582747,0.46546,4786.7,4786.6,0.2241]
[1756010583049,0.0475,4786.5,4786.4,0.2241]
[1756010583235,19.1325,4786.5,4786.4,0.2241]
[1756010583634,19.1334,4786.5,4786.4,0.2241]
[1756010585046,19.1343,4786.5,4786.4,0.6127]
[1756010590849,19.1343,4786.5,4786.4,1.3291]
[1756010592452,19.1146,4786.5,4786.4,1.3291]
[1756010592649,19.085,4786.5,4786.4,1.3291]
[1756010593149,0.0504,4786.5,4786.4,0.2241]
[1756010593341,0.0504,4786.5,4786.0,3.44]
[1756010593545,0.0504,4786.2,4786.1,0.2327]
[1756010593743,0.0314,4785.9,4785.8,0.41803]
[1756010593947,19.1404,4785.9,4785.8,0.2327]
[1756010594743,19.1404,4785.9,4785.8,0.9499]
[1756010594944,19.1223,4785.9,4785.8,1.3397]
[1756010595452,19.09,4785.9,4785.8,1.3397]
[1756010595952,19.138,4785.9,4785.8,1.3397]
[1756010596746,19.1389,4785.9,4785.8,1.3397]
[1756010597454,19.1404,4785.9,4785.8,1.3397]
[1756010599955,0.0181,4786.2,4785.8,0.8019]
[1756010600157,0.0199,4786.2,4786.1,1.75771]
[1756010600349,0.0504,4786.2,4786.1,1.75771]
[1756010601557,0.0323,4786.2,4786.1,1.75771]
[1756010602257,19.1101,4786.4,4786.3,0.41799]
[1756010602456,19.1119,4786.4,4786.3,1.75769]
[1756010603760,19.1424,4786.4,4786.3,1.75769]
[1756010604559,19.1424,4786.4,4786.3,1.42069]
[1756010604748,0.0009,4786.2,4785.5,3.2078]
[1756010604954,0.0504,4785.6,4785.5,4.39586]
[1756010605154,19.1424,4785.6,4785.5,4.39586]
[1756010605354,19.1424,4785.6,4785.5,4.96556]
[1756010608761,19.1243,4785.6,4785.5,4.96556]
[1756010609163,19.1243,4785.6,4785.5,5.1462226]
[1756010609352,19.1426,4785.6,4785.5,5.1462226]
[1756010610051,0.0506,4785.6,4785.5,5.1462226]
[1756010610652,0.0009,4785.6,4785.5,5.1462226]
[1756010610855,19.1244,4786.0,4785.9,1.18803]
[1756010611162,19.1427,4786.0,4785.9,1.75773]
[1756010611362,19.1439,4786.0,4785.9,1.75773]
[1756010611762,19.1439,4786.0,4785.9,0.41803]
[1756010613669,0.0519,4785.5,4785.4,0.41807]
[1756010613864,19.1439,4785.5,4785.4,0.41807]
[1756010614055,0.0193,4785.4,4785.3,0.41807]
[1756010614262,0.0513,4785.4,4785.3,0.41807]
[1756010614568,0.0513,4785.4,4785.3,0.64087]
[1756010614962,0.0513,4785.4,4785.3,1.02427]
[1756010615159,0.0513,4785.4,4785.3,1.74157]
[1756010615958,19.1433,4785.4,4785.3,1.74157]
[1756010617466,19.1433,4785.4,4785.3,1.92226599]
[1756010621962,19.1433,4785.4,4785.3,1.92225497]
[1756010622464,19.1433,4785.4,4785.3,1.92226485]
[1756010623366,19.1433,4785.4,4785.3,5.13006485]
[1756010623961,19.092,4785.4,4785.3,5.13006485]
[1756010624256,0.0331,4785.7,4785.6,0.41805]
[1756010624458,0.0513,4785.7,4785.6,1.74155]
[1756010626868,3.2078,4786.0,4785.9,1.74153]
[1756010627069,3.2078,4786.0,4785.9,1.92223371]
[1756010627572,19.0921,4786.3,4786.2,1.7415]
[1756010628264,3.2078,4787.0,4786.9,1.74144]
[1756010628265,3.2392,4787.0,4786.9,1.74144]
[1756010628468,0.0022,4787.3,4787.2,1.17161]
[1756010628668,0.0022,4787.3,4787.2,1.74141]
[1756010629168,3.2591,4787.6,4787.5,0.94879]
[1756010629472,0.0022,4787.6,4787.5,1.74139]
[1756010630268,0.0513,4787.6,4787.5,1.74139]
[1756010631471,0.0513,4787.6,4787.5,1.39849]
[1756010632371,0.0513,4787.6,4787.5,1.74139]
[1756010632564,0.0011,4787.6,4787.5,1.74139]
[1756010632760,0.0331,4787.8,4787.7,0.94877]
[1756010632964,0.0513,4787.8,4787.7,1.74137]
[1756010634672,19.1393,4787.8,4787.7,1.3235]
[1756010635974,19.1393,4787.8,4787.7,0.4497]
[1756010636174,19.1393,4787.8,4787.7,0.2228]
[1756010641178,0.032,4787.5,4787.4,0.64479]
[1756010641366,0.0513,4787.5,4787.4,0.64479]
[1756010641777,0.0513,4787.5,4787.4,0.86759]
[1756010642478,0.46919,4787.5,4787.4,1.02409]
[1756010642776,0.46919,4787.5,4787.4,1.74139]
[1756010643178,0.46919,4787.5,4787.4,1.3235]
[1756010643376,0.46919,4787.5,4787.4,0.2228]
[1756010643770,0.0314,4787.1,4786.6,3.97146]
[1756010643971,0.0314,4786.8,4786.7,0.2363]
[1756010644272,0.0314,4786.8,4786.3,0.8038]
[1756010644467,0.46838,4786.4,4786.3,1.3365]
[1756010644675,19.083,4786.5,4786.4,1.3365]
[1756010644880,19.083,4786.5,4786.4,1.75448]
[1756010645074,19.083,4786.5,4786.4,1.3365]
[1756010645274,19.1153,4786.5,4786.4,1.3365]
[1756010645479,19.1334,4786.5,4786.4,1.3365]
[1756010645880,19.1334,4786.5,4786.4,0.4581]
[1756010646271,19.1334,4786.5,4786.4,0.2218]
[1756010649081,19.1334,4786.5,4786.4,0.4581]
[1756010650085,19.1334,4786.5,4786.4,0.6114]
[1756010650380,19.1334,4786.5,4786.4,0.8332]
[1756010650582,19.1334,4786.5,4786.4,1.3365]
[1756010651674,0.44935,4786.8,4786.7,0.7545]
[1756010651874,19.54945,4786.8,4786.7,1.3365]
[1756010652186,20.0437169,4786.8,4786.7,0.9908]
[1756010652380,19.55035,4786.8,4786.7,0.9908]
[1756010652779,19.55035,4786.8,4786.7,0.2218]
[1756010654489,19.55035,4786.8,4786.7,0.6114]
[1756010654680,19.55035,4786.8,4786.7,1.3365]
[1756010654883,1.04492,4786.6,4786.1,0.2218]
[1756010655077,0.4684,4786.2,4786.1,0.4581]
[1756010655280,19.5514,4786.2,4786.1,0.4581]
[1756010655784,19.5514,4786.2,4786.1,0.2218]
[1756010656180,19.5514,4786.2,4785.7,0.2363]
[1756010656181,0.46754,4785.8,4785.7,0.4581]
[1756010656383,19.55144,4785.8,4785.7,0.2218]
[1756010658682,0.41807,4785.4,4785.2,3.97158]
[1756010658878,19.1346,4785.3,4785.2,4.58298]
[1756010659087,19.1346,4785.3,4785.2,4.74058]
[1756010659287,19.1346,4785.3,4785.2,4.56848]
[1756010659485,19.1346,4785.3,4785.2,4.80478]
[1756010659686,19.1346,4785.3,4785.2,4.96238]
[1756010660889,19.55268,4785.3,4785.2,4.1692]
[1756010661081,19.55268,4785.3,4785.2,0.9614]
[1756010661686,19.55268,4785.3,4785.2,1.1147]
[1756010661992,19.55268,4785.3,4785.2,1.3365]
[1756010662392,19.1346,4785.3,4785.2,1.3365]
[1756010662789,19.1163,4785.3,4785.2,1.3365]
[1756010663591,19.1346,4785.3,4785.2,1.3365]
[1756010663987,19.083,4785.3,4785.2,1.3365]
[1756010664188,19.1346,4785.3,4785.2,1.3365]
[1756010666495,19.083,4785.3,4785.2,1.3365]
[1756010666993,19.0841,4785.3,4785.2,1.3365]
[1756010668292,19.1036,4785.3,4785.2,1.3365]
[1756010668691,19.1346,4785.3,4785.2,1.3365]
[1756010669195,19.1346,4785.3,4785.2,0.2218]
[1756010669593,19.1346,4785.3,4785.1,0.41809]
[1756010669594,0.46963,4785.9,4785.8,0.2218]
[1756010669891,19.55563,4785.9,4785.8,0.2218]
[1756010670686,22.76343,4785.9,4785.8,0.2218]
[1756010672402,0.45006,4785.5,4785.4,0.63987]
[1756010672593,19.55636,4785.5,4785.4,0.87617]
[1756010672788,19.55636,4785.5,4785.4,1.02947]
[1756010672992,19.1383,4785.5,4785.4,1.75457]
[1756010674995,19.1383,4785.5,4785.4,0.63987]
[1756010675298,19.1383,4785.5,4785.4,1.36407]
[1756010675500,19.1383,4785.5,4785.4,1.74487]
[1756010676000,19.1383,4785.5,4785.4,1.39717]
[1756010677796,19.1383,4785.5,4785.4,1.74487]
[1756010685203,19.1383,4785.5,4785.4,1.92436767]
[1756010687509,19.1383,4785.5,4785.4,1.74487]
[1756010689413,19.1383,4785.5,4785.4,1.9243978]
[1756010690610,19.1383,4785.5,4785.4,1.92439898]
[1756010692409,19.63414241,4785.5,4785.4,1.92439898]
[1756010692914,19.63414241,4785.5,4785.4,1.57669898]
[1756010693611,19.63414241,4785.5,4785.4,1.42149898]
[1756010694009,19.63414241,4785.5,4785.4,1.19589898]
[1756010694205,19.63414241,4785.5,4785.4,0.40132898]
[1756010694409,0.0506,4785.3,4785.2,0.41808]
[1756010694615,0.0518,4785.3,4785.2,0.65408]
[1756010694909,0.54764241,4785.3,4785.2,0.65408]
[1756010696515,0.54764241,4785.3,4785.2,1.75908]
[1756010696702,0.52934241,4785.3,4785.2,1.75908]
[1756010696908,0.54764241,4785.3,4785.2,1.75908]
[1756010699918,0.49824241,4785.3,4785.2,1.75908]
[1756010700819,0.49678155,4785.3,4785.2,1.75908]
[1756010701012,0.49558155,4785.3,4785.2,1.75908]
[1756010701212,0.49678155,4785.3,4785.2,1.75908]
[1756010701516,0.45041,4785.0,4784.9,0.236]
[1756010701720,0.0518,4784.6,4784.5,0.236]
[1756010701919,19.55294,4784.6,4784.5,0.236]
[1756010703316,19.55294,4784.6,4784.5,0.4623]
[1756010703516,22.76074,4784.6,4784.5,0.4623]
[1756010703718,22.76074,4784.6,4784.5,0.236]
[1756010704614,22.76074,4784.6,4784.5,0.462]
[1756010705817,22.76074,4784.6,4784.5,0.236]
[1756010708023,22.3426,4784.6,4784.5,0.236]
[1756010708222,22.3426,4784.6,4784.5,0.462]
[1756010714830,22.3426,4784.6,4784.5,0.236]
[1756010715630,0.46545,4784.5,4784.4,0.2189]
[1756010716731,0.46545,4784.5,4784.4,0.4449]
[1756010719632,0.46545,4784.5,4784.4,1.3403]
[1756010719633,0.0473,4784.5,4784.4,1.3403]
[1756010724840,4.0,4784.5,4783.5,0.3493]
[1756010725047,0.7603,4783.3,4783.2,0.96436]
[1756010725236,20.1878,4783.3,4783.2,0.5461]
[1756010727040,20.1878,4783.3,4783.2,1.3403]
[1756010730043,0.5642,4783.0,4782.8,0.2189]
[1756010730240,3.2078,4783.6,4782.8,1.4093]
[1756010730241,20.4087,4782.9,4782.8,1.4093]
[1756010730435,0.5396,4782.4,4782.3,0.765]
[1756010730640,20.1878,4782.4,4782.3,1.3403]
[1756010731543,19.6236,4782.4,4782.3,1.3403]
[1756010731743,3.5161,4782.9,4782.8,0.9163]
[1756010731937,4.3116,4783.4,4783.3,1.3403]
[1756010732136,22.2918,4783.4,4783.3,1.75855]
[1756010733243,22.7868,4783.4,4783.3,1.75855]
[1756010733449,23.1749,4783.4,4783.3,1.75855]
[1756010733640,20.1878,4783.4,4783.3,1.75855]
[1756010734045,19.084,4783.4,4783.3,1.75855]
[1756010735045,1.2937,4784.0,4783.9,1.3973]
[1756010735353,1.2937,4783.6,4783.5,0.86773]
[1756010735643,20.3787,4783.6,4783.5,1.02033]
[1756010735837,20.3787,4783.6,4783.5,1.72423]
[1756010736438,20.3787,4783.6,4783.5,1.39733]
[1756010736647,20.3787,4783.6,4783.5,0.79103]
[1756010736947,20.3787,4783.6,4783.5,0.2202]
[1756010737146,20.3787,4783.6,4783.4,0.41824]
[1756010737341,19.6046,4783.6,4783.4,0.41824]
[1756010737544,1.2937,4783.5,4783.4,0.63844]
[1756010737938,1.2937,4783.5,4783.4,1.02034]
[1756010738353,1.2937,4783.5,4783.4,0.2202]
[1756010738545,1.2937,4783.5,4783.3,0.41825]
[1756010738744,1.2937,4783.4,4783.3,0.63845]
[1756010738949,1.2937,4783.4,4783.3,0.41825]
[1756010739953,1.2937,4783.4,4783.3,1.39735]
[1756010740253,0.8519,4783.4,4783.3,1.72425]
[1756010740452,1.0739,4783.4,4783.3,1.72425]
[1756010742444,3.2078,4784.1,4783.8,0.377]
[1756010742650,3.2078,4784.1,4784.0,1.306]
[1756010742651,3.5401,4784.1,4784.0,1.306]
[1756010742848,22.8444,4784.1,4784.0,1.306]
[1756010743052,23.3667,4784.1,4784.0,1.72419]
[1756010744259,23.5865,4784.1,4784.0,0.9791]
[1756010745650,23.5865,4784.1,4784.0,1.306]
[1756010745850,20.1589,4784.1,4784.0,1.306]
[1756010746454,1.0739,4784.4,4784.3,1.72416]
[1756010746653,20.3797,4784.4,4784.3,0.9791]
[1756010746849,20.3797,4784.4,4784.3,0.2202]
[1756010747653,20.3797,4784.4,4784.3,0.4495]
[1756010747854,1.71188,4784.2,4784.1,0.2202]
[1756010748253,1.2937,4784.2,4784.1,0.2202]
[1756010748457,1.2937,4784.2,4784.1,0.4495]
[1756010748658,1.2937,4784.2,4784.1,0.929]
[1756010748859,1.2937,4784.2,4784.1,0.6021]
[1756010749754,1.2937,4784.2,4784.1,0.3728]
[1756010751156,1.2937,4784.2,4784.1,0.2202]
[1756010752062,4.5015,4784.2,4784.1,0.2202]
[1756010752262,1.2937,4784.2,4784.1,0.2202]
[1756010753058,1.2937,4784.2,4784.1,0.4495]
[1756010753265,1.2937,4784.2,4784.1,1.306]
[1756010753759,1.0739,4784.2,4784.1,1.306]
[1756010754665,20.1579,4784.2,4784.1,1.306]
[1756010755266,20.57607,4784.2,4784.1,1.306]
[1756010756060,20.1579,4784.2,4784.1,1.306]
[1756010756364,1.0739,4784.2,4784.1,1.306]
[1756010756673,20.1569,4784.2,4784.1,1.306]
[1756010758661,19.083,4784.2,4784.1,0.7764]
[1756010758866,20.1569,4784.2,4784.1,1.306]
[1756010759965,20.3767,4784.2,4784.1,1.306]
[1756010761766,20.3767,4784.2,4784.1,0.2202]
[1756010761971,20.3767,4784.2,4784.1,0.4495]
[1756010762167,20.3767,4784.2,4784.1,1.306]
[1756010763170,20.1569,4784.2,4784.1,1.306]
[1756010763363,20.3757,4784.2,4784.1,1.306]
[1756010765259,0.5769,4784.0,4783.9,0.2241]
[1756010765461,20.0352,4784.0,4783.9,0.2241]
[1756010765864,20.8459,4784.0,4783.9,0.2241]
[1756010767169,20.8459,4784.0,4783.9,0.5891]
[1756010767369,20.8459,4784.0,4783.9,0.9206]
[1756010767569,20.8459,4784.0,4783.9,1.2945]
[1756010767769,20.4277,4784.0,4783.9,1.2945]
[1756010768964,20.4277,4784.0,4783.9,0.2241]
[1756010769164,20.4277,4784.0,4783.1,3.2078]
[1756010769165,0.8107,4783.9,4783.3,0.2241]
[1756010769368,0.41828,4783.0,4782.7,0.4183]
[1756010769671,1.3457,4782.8,4782.7,0.4183]
[1756010769866,1.3457,4782.8,4782.7,0.17896119]
[1756010769867,1.764,4782.8,4782.7,0.17896119]
[1756010770168,1.3457,4782.4,4782.3,0.85983]
[1756010770364,1.3457,4782.0,4781.8,0.41837]
[1756010770567,20.4257,4781.9,4781.8,0.64247]
[1756010770769,20.4257,4781.9,4781.8,0.82135847]
[1756010771471,20.4257,4781.9,4781.8,0.64247]
[1756010771674,20.4257,4781.9,4781.8,0.85987]
[1756010771872,20.4257,4781.9,4781.8,1.00747]
[1756010772372,20.2059,4781.9,4781.8,1.71287]
[1756010772573,0.1561,4782.6,4782.5,0.41832]
[1756010772867,20.4257,4782.6,4782.5,0.3717]
[1756010773069,20.4257,4782.6,4782.5,0.2241]
[1756010775171,20.2059,4782.6,4782.5,1.2945]
[1756010775963,19.9658,4782.6,4782.5,1.2945]
[1756010776170,19.615,4782.6,4782.5,1.2945]